bitfinex-derivatives/quotes_ETHF0:USTF0_20251021
["timestamp","ask_amount","ask_price","bid_price","bid_amount"]
[1761005100974,0.2187,3973.1,3973.0,0.9021]
[1761005101172,0.45289,3973.4,3973.3,0.3447]
[1761005101370,0.45289,3973.5,3973.4,0.7719]
[1761005101566,0.67159,3973.5,3973.4,0.7719]
[1761005102169,1.82687961,3973.5,3973.4,0.7719]
[1761005103072,0.90428728,3974.1,3973.4,0.7719]
[1761005103073,4.44864133,3974.1,3974.0,0.6853]
[1761005103271,5.30253236,3974.1,3974.0,0.2104]
[1761005103471,0.90105,3973.8,3973.7,0.7719]
[1761005103670,1.82683014,3973.8,3973.7,0.7719]
[1761005104073,1.04093014,3973.8,3973.7,0.7719]
[1761005104278,1.03628014,3973.8,3973.7,0.7719]
[1761005104480,1.37398014,3973.8,3973.7,0.7719]
[1761005105576,1.03628014,3973.8,3973.7,0.7719]
[1761005105973,1.37398014,3973.8,3973.7,0.7719]
[1761005106875,1.23879,3973.4,3973.3,0.7719]
[1761005107075,1.23879,3973.4,3973.3,0.5551]
[1761005108270,0.7859,3973.4,3973.3,0.7719]
[1761005109076,0.4482,3973.4,3973.3,0.7719]
[1761005110778,0.90109,3973.4,3973.3,0.7719]
[1761005111186,1.23879,3973.4,3973.3,0.3447]
[1761005111382,1.23879,3973.4,3973.3,0.7719]
[1761005113273,1.23879,3973.4,3973.3,0.5551]
[1761005115786,1.23879,3973.4,3973.3,1.008]
[1761005116086,3.2078,3973.5,3973.4,1.21549]
[1761005116284,4.24857584,3973.5,3973.4,1.21549]
[1761005116485,4.46957584,3973.5,3973.4,1.21549]
[1761005117489,5.02677584,3973.5,3973.4,0.7626]
[1761005117688,4.69937584,3973.5,3973.4,1.21549]
[1761005117889,0.67594133,3974.1,3974.0,0.5652]
[1761005118079,1.06992768,3974.1,3974.0,0.8908]
[1761005118281,1.06992768,3974.1,3974.0,1.34362]
[1761005118282,0.59011611,3974.1,3974.0,1.34362]
[1761005118587,0.00213133,3974.1,3974.0,1.34362]
[1761005119484,0.59011611,3974.1,3974.0,1.34362]
[1761005119684,0.00213133,3974.1,3974.0,1.34362]
[1761005122290,0.00213133,3974.1,3974.0,13.48242]
[1761005126296,0.22313133,3974.1,3974.0,13.48242]
[1761005126994,0.00213133,3974.1,3974.0,13.48242]
[1761005128287,0.00213133,3974.1,3974.0,4.0986]
[1761005128489,1.3692022,3974.1,3974.0,9.6906]
[1761005128694,1.3692022,3974.1,3974.0,9.4646]
[1761005129087,1.3692022,3974.1,3974.0,9.139]
[1761005129597,1.3692022,3974.1,3974.0,9.4842]
[1761005130296,1.3692022,3974.1,3974.0,0.5562]
[1761005133998,1.8220122,3974.1,3974.0,0.7702]
[1761005134391,1.8220122,3974.1,3974.0,0.9075]
[1761005134590,1.8220122,3974.1,3974.0,1.36032]
[1761005134895,1.4920122,3974.1,3974.0,1.36032]
[1761005137699,0.8169022,3974.1,3974.0,1.36032]
[1761005137990,0.5904022,3974.1,3974.0,1.36032]
[1761005139399,0.5904022,3974.1,3974.0,4.56812]
[1761005141597,0.00213133,3974.1,3974.0,4.56812]
[1761005142198,0.5904022,3974.1,3974.0,4.56812]
[1761005142396,0.00213133,3974.1,3974.0,4.56812]
[1761005143899,0.5904022,3974.1,3974.0,4.56812]
[1761005144802,0.00213133,3974.1,3974.0,4.56812]
[1761005146105,0.00213133,3974.1,3974.0,13.48112]
[1761005149613,0.00213133,3974.1,3974.0,10.27332]
[1761005150111,0.00213133,3974.1,3974.0,13.48112]
[1761005152809,0.5904022,3974.1,3974.0,13.48112]
[1761005153509,0.00213133,3974.1,3974.0,9.8205]
[1761005153712,0.22863133,3974.1,3974.0,9.8205]
[1761005154014,0.8169022,3974.1,3974.0,9.8205]
[1761005154605,1.3692022,3974.1,3974.0,9.8135]
[1761005155113,1.3692022,3974.1,3974.0,9.8125]
[1761005156818,1.0392022,3974.1,3974.0,9.8125]
[1761005158414,1.3560022,3974.1,3974.0,9.8125]
[1761005158708,1.3560022,3974.1,3973.7,1.1617]
[1761005158901,0.45294,3973.0,3972.8,1.806291]
[1761005159105,0.45301,3972.4,3972.3,0.3364]
[1761005159415,0.45301,3972.4,3972.0,0.14061216]
[1761005159416,0.45304,3972.1,3972.0,0.14061216]
[1761005159608,0.45304,3972.1,3970.7,1.806291]
[1761005159609,0.0749,3971.5,3970.1,3.2078]
[1761005159911,0.0749,3971.5,3970.4,0.2177]
[1761005159912,3.5434,3970.5,3970.4,0.2177]
[1761005160104,3.5434,3970.5,3970.0,0.19875073]
[1761005160105,0.3356,3970.1,3970.0,0.19875073]
[1761005160306,3.5434,3970.1,3970.0,0.1374]
[1761005160506,9.13375811,3970.1,3970.0,0.00275241]
[1761005160814,9.55097885,3970.1,3970.0,0.00275241]
[1761005161012,5.28290599,3970.1,3970.0,0.57905241]
[1761005161219,4.13375811,3970.1,3970.0,0.57905241]
[1761005161508,3.54548724,3970.1,3970.0,0.91545241]
[1761005162104,3.84678805,3970.1,3970.0,4.12325241]
[1761005162312,3.20988724,3970.1,3970.0,4.12325241]
[1761005163206,3.37768724,3970.1,3970.0,0.91545241]
[1761005163616,3.54548724,3970.1,3970.0,0.91545241]
[1761005164501,3.20988724,3970.1,3970.0,4.12325241]
[1761005170009,3.20988724,3970.1,3970.0,13.12525241]
[1761005172220,3.2078,3970.5,3970.4,1.22853]
[1761005172518,3.2078,3970.9,3970.6,0.3364]
[1761005172721,3.2078,3970.9,3970.8,0.7753]
[1761005173020,3.2078,3970.9,3970.8,3.9831]
[1761005173319,3.21076596,3970.9,3970.8,3.9831]
[1761005176921,3.37856596,3970.9,3970.8,3.9831]
[1761005177120,3.21076596,3970.9,3970.8,3.9831]
[1761005177915,3.54616596,3970.9,3970.8,3.9831]
[1761005178110,3.71386596,3970.9,3970.8,3.7619]
[1761005178320,0.95631,3970.6,3970.5,0.7125]
[1761005178521,0.78861,3970.6,3970.5,0.7125]
[1761005178817,0.78861,3970.6,3970.5,4.1518]
[1761005178818,0.3354,3970.6,3970.5,4.1518]
[1761005179126,3.99934596,3970.9,3970.8,0.5751]
[1761005179713,4.16704596,3970.9,3970.8,0.5751]
[1761005179910,3.99934596,3970.9,3970.8,0.5751]
[1761005183222,3.54616596,3970.9,3970.8,0.8066]
[1761005183522,3.21076596,3970.9,3970.8,4.46759]
[1761005184115,0.1677,3972.1,3971.2,1.25974]
[1761005184116,3.2078,3971.3,3971.2,1.25974]
[1761005184313,3.2078,3971.7,3971.6,1.2597]
[1761005184510,3.5432,3972.2,3972.1,0.8066]
[1761005184722,4.17771734,3972.2,3972.1,0.8066]
[1761005185116,4.18066182,3972.2,3972.1,0.8066]
[1761005185722,4.34836182,3972.2,3972.1,0.5751]
[1761005187215,4.60627712,3972.2,3972.1,0.5751]
[1761005188123,4.43857712,3972.2,3971.6,0.327]
[1761005188324,4.43857712,3972.2,3971.0,0.1279]
[1761005188325,0.336,3971.2,3971.1,1.00425]
[1761005188527,0.97051734,3971.2,3971.1,4.42385]
[1761005188729,0.63451734,3971.2,3971.1,4.42385]
[1761005188926,4.10417743,3971.7,3971.6,0.7629]
[1761005189224,4.26829025,3971.7,3971.6,0.7629]
[1761005189428,4.60429025,3971.7,3971.6,3.7589]
[1761005190424,4.43629025,3971.7,3971.6,3.7589]
[1761005190726,4.88938025,3971.7,3971.6,3.7589]
[1761005190926,4.88938025,3971.7,3971.6,3.9707]
[1761005192229,4.85285075,3971.7,3971.6,3.7589]
[1761005192826,5.75007457,3971.7,3971.6,3.7589]
[1761005193232,4.85285075,3971.7,3971.6,3.7589]
[1761005193635,5.02085075,3971.7,3971.6,3.5348]
[1761005193826,0.9571,3971.6,3971.5,0.1347]
[1761005194031,0.9571,3971.6,3971.3,0.45313]
[1761005194032,0.336,3971.4,3971.3,0.45313]
[1761005194334,0.9368204,3971.4,3971.3,0.67723]
[1761005194632,0.9368204,3971.4,3971.3,4.21203]
[1761005195634,0.9368204,3971.4,3971.3,4.42383]
[1761005198034,0.6008204,3971.4,3971.3,4.42383]
[1761005198325,0.336,3971.4,3971.3,4.42383]
[1761005198836,0.9368204,3971.4,3971.3,4.42383]
[1761005199033,0.6008204,3971.4,3971.3,4.42383]
[1761005199328,1.06538396,3971.6,3971.5,1.35071]
[1761005199633,2.08276218,3971.6,3971.5,1.35071]
[1761005199832,2.08276218,3971.6,3971.5,4.55851]
[1761005200219,2.53586218,3971.6,3971.5,4.55851]
[1761005201631,2.53586218,3971.6,3971.5,4.1054]
[1761005201827,1.63847822,3971.6,3971.5,4.1054]
[1761005203022,1.18537822,3971.6,3971.5,4.55851]
[1761005203234,1.63847822,3971.6,3971.5,4.55851]
[1761005204127,5.74503514,3971.6,3971.5,4.55851]
[1761005204332,4.95593514,3971.6,3971.5,4.55851]
[1761005204817,5.40903514,3971.6,3971.5,4.55851]
[1761005205023,5.57703514,3971.6,3971.5,4.55851]
[1761005205331,5.32906807,3971.6,3971.5,4.55851]
[1761005205734,4.87596807,3971.6,3971.5,4.55851]
[1761005206029,4.70796807,3971.6,3971.5,4.55851]
[1761005206432,3.80921115,3971.6,3971.5,4.55851]
[1761005209127,3.80921115,3971.6,3971.5,13.51251]
[1761005210730,4.14521115,3971.6,3971.5,4.55851]
[1761005210923,4.76631115,3971.6,3971.5,3.8936]
[1761005211123,4.59831115,3971.6,3971.5,3.8936]
[1761005211525,4.59831115,3971.6,3971.5,4.34671]
[1761005212127,4.59831115,3971.6,3971.5,4.55851]
[1761005213438,4.59831115,3971.6,3971.5,4.1054]
[1761005213633,4.76631115,3971.6,3971.5,3.8936]
[1761005213832,4.76631115,3971.6,3971.5,0.327]
[1761005214333,0.78915,3971.1,3971.0,0.5638]
[1761005214539,3.99695,3971.1,3971.0,0.5638]
[1761005214833,4.59836115,3971.1,3971.0,4.0986]
[1761005215235,4.31321115,3971.1,3970.6,8.95]
[1761005215435,0.504,3970.1,3970.0,0.32975241]
[1761005215641,4.85106187,3970.1,3970.0,0.00275241]
[1761005215938,5.19966949,3970.1,3970.0,0.00275241]
[1761005216138,5.19966949,3970.1,3970.0,0.32975241]
[1761005216330,4.30091257,3970.1,3970.0,0.32975241]
[1761005217239,3.79691257,3970.1,3970.0,4.39691723]
[1761005217432,3.2078,3970.1,3970.0,4.39691723]
[1761005220142,3.2078,3970.1,3970.0,9.39691723]
[1761005220438,0.78878,3970.9,3970.8,0.7685]
[1761005220632,1.37680349,3970.9,3970.8,0.7685]
[1761005221029,0.92352805,3970.9,3970.8,0.7685]
[1761005221341,3.5434,3971.0,3970.9,0.3192]
[1761005221532,4.13139802,3971.0,3970.9,3.81178482]
[1761005222940,4.29919802,3971.0,3970.9,0.3192]
[1761005223135,0.3356,3970.7,3970.6,0.3192]
[1761005223335,0.45322,3970.5,3970.3,0.3192]
[1761005223529,4.29544406,3970.4,3970.3,0.3192]
[1761005224429,3.95984406,3970.4,3970.3,3.81178482]
[1761005224634,3.79204406,3970.4,3970.3,3.81178482]
[1761005224841,3.95984406,3970.4,3970.3,3.81178482]
[1761005225143,4.12764406,3970.4,3970.3,3.81178482]
[1761005226344,0.5034,3970.2,3970.1,0.3192]
[1761005226737,1.08764406,3970.2,3970.1,0.3192]
[1761005226931,0.62107,3970.1,3970.0,0.00275241]
[1761005227137,1.54091406,3970.1,3970.0,0.32195241]
[1761005227445,0.75204406,3970.1,3970.0,3.94903723]
[1761005227742,0.1678,3970.1,3970.0,3.94903723]
[1761005227945,0.75204406,3970.1,3970.0,3.94903723]
[1761005228242,0.1678,3970.1,3970.0,3.94903723]
[1761005228744,0.3356,3970.1,3970.0,3.73093723]
[1761005228939,0.5034,3970.1,3970.0,0.68765241]
[1761005229139,0.91887917,3970.1,3970.0,0.68765241]
[1761005230443,1.08667917,3970.1,3970.0,0.00275241]
[1761005230848,1.08667917,3970.1,3970.0,0.45645241]
[1761005231642,1.08667917,3970.1,3970.0,0.68765241]
[1761005231841,0.91887917,3970.1,3970.0,0.90575241]
[1761005232042,1.08667917,3970.1,3970.0,0.45645241]
[1761005232242,1.08667917,3970.1,3970.0,0.32195241]
[1761005233153,1.08667917,3970.1,3970.0,0.00275241]
[1761005234748,1.53994917,3970.1,3970.0,0.00275241]
[1761005235050,1.53994917,3970.1,3970.0,0.32195241]
[1761005235752,1.53994917,3970.1,3970.0,0.67975241]
[1761005236249,0.91887917,3970.1,3970.0,0.90315241]
[1761005236452,1.20434917,3970.1,3970.0,0.90315241]
[1761005236652,1.37214917,3970.1,3970.0,0.90315241]
[1761005237053,1.53994917,3970.1,3970.0,0.90315241]
[1761005237745,1.37214917,3970.1,3970.0,0.90315241]
[1761005238951,1.53994917,3970.1,3970.0,0.32195241]
[1761005239153,1.37214917,3970.1,3970.0,0.67975241]
[1761005239350,1.37214917,3970.1,3970.0,0.90315241]
[1761005240858,1.03654917,3970.1,3970.0,3.94643723]
[1761005241749,0.58327917,3970.1,3970.0,4.39971723]
[1761005241950,1.03654917,3970.1,3970.0,3.94643723]
[1761005242951,0.45326,3970.2,3970.1,0.3419]
[1761005243255,1.03649545,3970.2,3970.1,3.82898482]
[1761005243454,1.03649545,3970.2,3970.1,0.7857]
[1761005244746,1.03649545,3970.2,3970.1,4.28225482]
[1761005244747,0.58323545,3970.2,3970.1,4.28225482]
[1761005244951,1.03649545,3970.2,3970.1,3.82898482]
[1761005245355,1.20429545,3970.2,3970.1,3.82898482]
[1761005245556,1.37209545,3970.2,3970.1,3.82898482]
[1761005250564,0.91883545,3970.2,3970.1,3.82898482]
[1761005251467,1.53839545,3970.2,3970.1,0.5623]
[1761005251768,1.53839545,3970.2,3970.1,0.3419]
[1761005252767,1.53839545,3970.2,3970.1,0.5726]
[1761005254366,0.58323545,3970.2,3970.1,0.7872]
[1761005254959,0.74953545,3970.2,3970.1,0.7872]
[1761005255157,0.91583545,3970.2,3970.1,0.7872]
[1761005256066,1.36909545,3970.2,3970.1,0.7872]
[1761005256668,1.36909545,3970.2,3970.1,3.83048482]
[1761005258469,1.85091692,3970.2,3970.1,3.38518482]
[1761005258764,2.43415237,3970.2,3970.1,3.38518482]
[1761005258966,2.26785237,3970.2,3970.1,3.61588482]
[1761005259367,2.26785237,3970.2,3970.1,3.83048482]
[1761005259862,1.53539545,3970.2,3970.1,3.83048482]
[1761005260467,1.53539545,3970.2,3970.1,3.61588482]
[1761005260657,1.53539545,3970.2,3970.1,3.38518482]
[1761005260857,2.43323482,3970.2,3970.1,3.38518482]
[1761005261063,2.43323482,3970.2,3970.0,0.14015241]
[1761005261064,0.95217,3970.1,3970.0,0.00275241]
[1761005261366,2.43323552,3970.1,3970.0,0.00275241]
[1761005261969,1.77028948,3970.1,3970.0,0.00275241]
[1761005262371,1.77028948,3970.1,3970.0,0.33305241]
[1761005263366,1.77028948,3970.1,3970.0,0.69075241]
[1761005263862,2.26704961,3970.1,3970.0,3.94863723]
[1761005265264,2.43334961,3970.1,3970.0,0.46005241]
[1761005265468,2.43334961,3970.1,3970.0,0.33305241]
[1761005265869,1.53540545,3970.1,3970.0,0.33305241]
[1761005266570,1.53540545,3970.1,3970.0,0.69075241]
[1761005267273,1.36910545,3970.1,3970.0,0.90535241]
[1761005267972,1.20280545,3970.1,3970.0,0.90535241]
[1761005268173,1.03650545,3970.1,3970.0,0.90535241]
[1761005268469,1.20280545,3970.1,3970.0,0.90535241]
[1761005268970,1.36910545,3970.1,3970.0,0.90535241]
[1761005270164,1.93487174,3970.1,3970.0,0.90535241]
[1761005270360,1.03650545,3970.1,3970.0,0.90535241]
[1761005270569,0.58323545,3970.1,3970.0,0.90535241]
[1761005270768,0.58323545,3970.1,3970.0,3.94863723]
[1761005271374,1.03650545,3970.1,3970.0,3.94863723]
[1761005273574,1.20280545,3970.1,3970.0,3.94863723]
[1761005275574,1.03650545,3970.1,3970.0,3.94863723]
[1761005276372,1.20280545,3970.1,3970.0,3.94863723]
[1761005276572,1.03650545,3970.1,3970.0,3.94863723]
[1761005276773,0.58323545,3970.1,3970.0,4.40191723]
[1761005277477,1.9356137,3970.2,3970.1,0.7804]
[1761005277678,1.93561098,3970.2,3970.1,3.82368482]
[1761005278379,1.93561098,3970.2,3970.1,4.27695482]
[1761005280777,1.48235098,3970.2,3970.1,4.27695482]
[1761005280980,0.58398469,3970.2,3970.1,4.27695482]
[1761005281184,3.2078,3970.4,3970.3,1.23365]
[1761005281382,1.35158629,3970.6,3970.5,0.4639]
[1761005281584,1.51788629,3970.6,3970.5,1.36732]
[1761005281887,0.5840711,3970.6,3970.5,4.41060482]
[1761005282088,0.5840711,3970.6,3970.5,4.08040482]
[1761005282292,3.2078,3970.8,3970.7,0.9034]
[1761005282580,3.2078,3970.8,3970.7,4.27688482]
[1761005282888,3.2078,3970.8,3970.7,9.27688482]
[1761005283283,3.2078,3971.3,3971.2,0.2261]
[1761005283488,3.79024111,3971.3,3971.2,1.23354]
[1761005283786,3.79024111,3971.3,3971.2,4.27682482]
[1761005284288,3.2078,3971.3,3971.2,4.27682482]
[1761005287992,3.3741,3971.3,3971.2,4.27682482]
[1761005288190,3.3741,3971.3,3971.2,1.23354]
[1761005288392,3.3741,3971.3,3971.2,4.27682482]
[1761005288695,3.2078,3971.3,3971.2,4.27682482]
[1761005290195,3.99353,3971.3,3971.2,0.5563]
[1761005290389,3.99353,3971.3,3971.0,0.1337]
[1761005290390,0.95206,3971.1,3971.0,0.1337]
[1761005290583,0.6195,3970.7,3970.6,0.90341]
[1761005290788,0.7858,3970.7,3970.6,1.23361]
[1761005290983,3.2078,3970.9,3970.8,1.23359]
[1761005291283,0.1663,3971.7,3971.3,0.3302]
[1761005291284,3.82722,3971.4,3971.3,0.3302]
[1761005291492,4.40812007,3971.4,3971.3,0.7804]
[1761005291687,4.57442007,3971.4,3971.3,0.7804]
[1761005292088,4.57442007,3971.4,3971.3,1.23353]
[1761005292693,4.57442007,3971.4,3971.3,0.7804]
[1761005292996,4.74072007,3971.4,3971.3,0.7804]
[1761005293296,0.45316,3971.1,3971.0,0.1337]
[1761005293594,0.95206,3971.1,3971.0,0.3598]
[1761005293791,3.2078,3971.4,3971.0,3.62718482]
[1761005294102,3.2078,3971.4,3971.3,4.27681482]
[1761005297698,0.95746,3971.1,3971.0,0.3213]
[1761005297899,0.95746,3971.1,3971.0,0.6572]
[1761005298086,0.95746,3971.1,3971.0,3.70048482]
[1761005298290,1.37046474,3971.1,3971.0,3.70048482]
[1761005298491,0.78936,3971.1,3971.0,3.70048482]
[1761005298790,0.78936,3971.1,3971.0,3.91808482]
[1761005299903,1.37046013,3971.1,3971.0,3.91808482]
[1761005300589,1.53856013,3971.1,3971.0,0.3213]
[1761005300793,1.53856013,3971.1,3970.7,0.3213]
[1761005300794,0.95749,3970.8,3970.7,0.3213]
[1761005300995,4.74660486,3970.8,3970.7,3.36458482]
[1761005301191,0.4532,3970.7,3970.6,3.36458482]
[1761005301395,1.53881486,3970.7,3970.6,3.36458482]
[1761005301695,1.53881486,3970.7,3970.6,3.04328482]
[1761005302705,6.53881486,3970.7,3970.6,3.04328482]
[1761005303100,7.43718115,3970.7,3970.6,3.04328482]
[1761005304600,6.37071486,3970.7,3970.6,3.57358482]
[1761005304997,0.91751486,3970.7,3970.6,3.79118482]
[1761005305204,1.20261486,3970.7,3970.6,3.79118482]
[1761005305597,1.37071486,3970.7,3970.6,3.79118482]
[1761005306904,1.20261486,3970.7,3970.6,3.79118482]
[1761005307204,1.20261486,3970.7,3970.6,6.83446964]
[1761005307405,1.03451486,3970.7,3970.6,6.83446964]
[1761005307598,1.03451486,3970.7,3970.6,0.7479]
[1761005307800,1.03451486,3970.7,3970.6,3.79118482]
[1761005308000,0.58131486,3970.7,3970.6,3.79118482]
[1761005308297,1.37011486,3970.7,3970.6,3.59168482]
[1761005308501,3.2078,3970.8,3970.7,0.7839]
[1761005308703,3.78967725,3970.8,3970.7,0.7839]
[1761005308906,3.95747725,3970.8,3970.7,3.82718482]
[1761005309107,4.12527725,3970.8,3970.7,3.82718482]
[1761005309808,4.12527725,3970.8,3970.7,0.7839]
[1761005313115,4.29307725,3970.8,3970.7,0.3382]
[1761005313304,0.95666,3970.2,3970.1,0.3382]
[1761005313503,4.74633725,3970.2,3970.1,0.3382]
[1761005314710,4.57853725,3970.2,3970.1,0.5653]
[1761005315311,4.57853725,3970.2,3970.1,0.7839]
[1761005316209,4.57853725,3970.2,3970.1,3.82718482]
[1761005319213,4.74633725,3970.2,3970.1,3.82718482]
[1761005319413,4.57853725,3970.2,3970.1,3.82718482]
[1761005321313,4.12527725,3970.2,3970.1,3.82718482]
[1761005321513,4.74633725,3970.2,3970.1,0.3382]
[1761005323912,0.95667,3970.1,3970.0,0.34095241]
[1761005324111,1.53854725,3970.1,3970.0,0.34095241]
[1761005325017,10.46754725,3970.1,3970.0,0.00275241]
[1761005327517,11.36591354,3970.1,3970.0,0.00275241]
[1761005327722,15.70208522,3970.1,3970.0,0.00275241]
[1761005331318,0.95677,3969.2,3969.1,0.3382]
[1761005331517,1.53864725,3969.2,3969.1,0.3382]
[1761005332318,1.54185005,3969.2,3969.1,0.34113373]
[1761005332514,1.08848005,3969.2,3969.1,0.34113373]
[1761005332710,0.92068005,3969.2,3969.1,0.56823373]
[1761005332916,9.84668005,3969.2,3969.1,0.55973373]
[1761005333128,9.84668005,3969.2,3969.1,0.78683373]
[1761005333822,10.01448005,3969.2,3969.1,0.78683373]
[1761005334026,10.01448005,3969.2,3969.1,0.56823373]
[1761005334622,9.84668005,3969.2,3969.1,0.56823373]
[1761005335425,9.84668005,3969.2,3969.1,0.78683373]
[1761005335722,9.67988005,3969.2,3969.1,3.83011855]
[1761005337525,9.84768005,3969.2,3969.1,3.80211855]
[1761005338723,9.67988005,3969.2,3969.1,3.80211855]
[1761005340326,9.51208005,3969.2,3969.1,3.80211855]
[1761005341227,9.68018005,3969.2,3969.1,3.80211855]
[1761005342824,9.84828005,3969.2,3969.1,3.80211855]
[1761005344134,10.30165005,3969.2,3969.1,3.80211855]
[1761005344436,0.2166,3968.3,3968.2,0.4322]
[1761005344733,3.4244,3968.3,3968.2,0.61758943]
[1761005344936,3.4244,3968.3,3968.2,3.65422832]
[1761005345124,3.87787,3968.3,3968.2,3.65422832]
[1761005345326,4.42197,3968.3,3968.2,3.25733889]
[1761005345526,3.4244,3968.3,3968.2,3.47127498]
[1761005345725,3.87787,3968.3,3968.2,3.47127498]
[1761005346425,4.08867,3968.3,3968.2,3.79497498]
[1761005346625,4.42197,3968.3,3968.2,3.79497498]
[1761005348044,5.00228615,3968.3,3968.2,3.79497498]
[1761005348340,4.42197,3968.3,3968.2,3.79497498]
[1761005348639,5.00221964,3968.3,3968.2,3.79497498]
[1761005349040,4.66891964,3968.3,3968.2,3.79497498]
[1761005349441,5.00221964,3968.3,3968.2,3.79497498]
[1761005349641,3.2078,3968.3,3968.2,3.79497498]
[1761005349842,3.87787,3968.3,3968.2,3.79497498]
[1761005350044,4.42197,3968.3,3968.2,3.79497498]
[1761005350741,3.9685,3968.3,3968.2,3.79497498]
[1761005350929,4.42197,3968.3,3968.2,3.58347498]
[1761005351332,4.42197,3968.3,3968.2,3.79497498]
[1761005352342,5.00195582,3968.3,3968.2,3.79497498]
[1761005352845,4.54848582,3968.3,3968.2,3.79497498]
[1761005353139,3.9685,3968.3,3968.2,3.79497498]
[1761005353443,5.00201323,3968.3,3968.2,3.79497498]
[1761005354148,3.2078,3968.3,3968.2,4.24845498]
[1761005357544,3.66123,3968.7,3968.6,0.7756]
[1761005357739,3.78859196,3968.7,3968.6,1.22904]
[1761005357939,3.78859196,3968.7,3968.6,4.26567889]
[1761005361053,3.2078,3968.7,3968.6,4.26567889]
[1761005363852,3.2078,3969.1,3969.0,0.3564]
[1761005364056,3.7889345,3969.1,3969.0,1.35669]
[1761005364255,3.7889345,3969.1,3969.0,4.39332889]
[1761005364456,3.2078,3969.1,3969.0,4.39332889]
[1761005365456,3.4186,3969.1,3969.0,4.39332889]
[1761005366555,0.2108,3969.1,3969.0,4.39332889]
[1761005367855,0.58411634,3969.2,3969.1,0.45338]
[1761005368055,0.58411634,3969.2,3969.1,4.26121889]
[1761005368453,0.0032028,3969.2,3969.1,4.26121889]
[1761005369156,0.2318028,3969.2,3969.1,4.26121889]
[1761005369355,0.81271634,3969.2,3969.1,4.26121889]
[1761005371459,0.81271634,3969.2,3969.1,1.22458]
[1761005372555,0.0032028,3969.2,3969.1,1.22458]
[1761005376557,0.0032028,3969.2,3969.1,4.26121889]
[1761005376758,3.2078,3969.4,3969.3,1.22456]
[1761005377061,1.22169,3969.9,3969.8,0.7712]
[1761005377261,1.47137154,3969.9,3969.8,0.7712]
[1761005377456,0.80918154,3969.9,3969.8,4.26113889]
[1761005377662,0.58058154,3969.9,3969.8,4.26113889]
[1761005377862,0.58359971,3969.9,3969.8,4.26113889]
[1761005379861,0.00301817,3969.9,3969.8,4.26113889]
[1761005385759,0.58084749,3970.4,3970.3,0.45325]
[1761005385959,3.4364,3970.8,3970.7,1.2244]
[1761005386169,4.01728585,3970.8,3970.7,1.2244]
[1761005386458,0.80948585,3970.8,3970.7,4.26103889]
[1761005386659,0.3309,3971.0,3970.9,0.45318]
[1761005386855,0.2286,3971.2,3971.1,1.22435]
[1761005387052,0.81227639,3971.2,3971.1,4.2629231]
[1761005387967,0.81227639,3971.2,3971.1,4.45345295]
[1761005388167,0.23154779,3971.2,3971.1,4.45345295]
[1761005388462,0.00294779,3971.2,3971.1,4.45345295]
[1761005392270,0.8082727,3972.0,3971.9,1.22426]
[1761005393166,0.23107548,3972.0,3971.9,4.26089889]
[1761005395073,0.77087548,3972.0,3971.9,3.59903889]
[1761005395376,0.90747548,3972.0,3971.9,3.03663889]
[1761005396284,0.90747548,3972.0,3971.9,3.36773889]
[1761005398472,0.7726,3971.8,3971.7,0.5549]
[1761005398770,0.7726,3971.8,3971.7,3.59153889]
[1761005399873,0.7726,3971.8,3971.7,3.81143889]
[1761005400874,1.22567,3971.8,3971.7,3.81143889]
[1761005401975,0.00247548,3972.0,3971.9,0.4314]
[1761005402275,0.21387548,3972.0,3971.9,1.22786]
[1761005402774,0.66692548,3972.0,3971.9,1.22786]
[1761005402970,1.01132548,3972.0,3971.9,1.22786]
[1761005403165,0.66692548,3972.0,3971.9,1.22786]
[1761005403370,0.66692548,3972.0,3971.9,4.26449889]
[1761005403981,0.66692548,3972.0,3971.9,3.81143889]
[1761005404678,0.21387548,3972.0,3971.9,4.26449889]
[1761005405076,0.66692548,3972.0,3971.9,4.26449889]
[1761005405880,0.21387548,3972.0,3971.9,4.26449889]
[1761005406574,0.00247548,3972.0,3971.9,4.26449889]
[1761005410276,0.58201967,3972.0,3971.9,16.39129889]
[1761005410481,3.2078,3972.5,3972.4,1.22781]
[1761005410672,0.57963444,3972.5,3972.4,4.26444889]
[1761005410975,0.79102949,3972.8,3972.7,1.22777]
[1761005411285,0.57962949,3972.8,3972.7,1.22777]
[1761005411484,1.8081254,3972.8,3972.7,3.81143889]
[1761005412479,1.3551654,3972.8,3972.7,4.26440889]
[1761005412678,0.5825654,3972.8,3972.7,4.26440889]
[1761005414070,0.00293591,3972.8,3972.7,4.26440889]
[1761005414377,0.00293591,3972.8,3972.7,3.81143889]
[1761005414378,0.88409591,3972.8,3972.7,3.81143889]
[1761005414677,1.4637254,3972.8,3972.7,3.81143889]
[1761005414884,0.5825654,3972.8,3972.7,4.26440889]
[1761005415271,0.00293591,3972.8,3972.7,4.26440889]
[1761005415478,0.5825654,3972.8,3972.7,4.26440889]
[1761005415876,0.00293591,3972.8,3972.7,4.26440889]
[1761005417084,0.5825654,3972.8,3972.7,7.47220889]
[1761005417584,0.00293591,3972.8,3972.7,7.47220889]
[1761005419081,0.5825654,3972.8,3972.7,7.47220889]
[1761005419281,0.00293591,3972.8,3972.7,7.47220889]
[1761005421184,0.00293591,3972.8,3972.7,16.38920889]
[1761005426500,0.00293591,3972.8,3972.7,7.47220889]
[1761005426695,0.00293591,3972.8,3972.7,16.38820889]
[1761005427585,0.22373591,3972.8,3972.7,16.38820889]
[1761005427786,0.00293591,3972.8,3972.7,16.38820889]
[1761005430996,3.2078,3973.7,3973.6,1.00317]
[1761005431297,4.34378415,3973.7,3973.6,1.21747]
[1761005431500,4.56128415,3973.7,3973.6,4.25410889]
[1761005431889,4.56443208,3973.7,3973.6,4.25410889]
[1761005432085,4.22993208,3973.7,3973.6,4.25410889]
[1761005432797,4.22993208,3973.7,3973.6,4.44728923]
[1761005433100,4.22993208,3973.7,3973.6,4.25410889]
[1761005434391,1.02213208,3973.7,3973.6,4.25410889]
[1761005434796,0.80463208,3973.7,3973.6,4.25410889]
[1761005435301,0.58383208,3973.7,3973.6,4.25410889]
[1761005435801,0.80463208,3973.7,3973.6,4.25410889]
[1761005437008,1.25749208,3973.7,3973.6,4.25410889]
[1761005437196,1.80949208,3973.7,3973.6,4.25410889]
[1761005437501,1.47499208,3973.7,3973.6,4.25410889]
[1761005440904,1.25749208,3973.7,3973.6,4.25410889]
[1761005444805,0.58383208,3973.7,3973.6,4.25410889]
[1761005445109,0.00314793,3973.7,3973.6,7.46190889]